{"text_format":"2","workbook":"xlsx","n_sheets":1,"sheets":["Informe 3"],"not_rendered":{"charts":0,"images":0,"macros":0,"external_links":102,"defined_names":2641,"comments":0,"pivot_tables":0},"unopened":[],"bounds":{"document_bytes":16777216,"sheet_cells":100000,"run_cost":"one","rows_first":2000,"rows_last":500,"rows_between":2000,"halvings":0,"cell_chars":16384,"cell_head_chars":4096},"cells_cut":0,"cells_raw":0,"read":"whole","date_system":"1900"}

{"sheet":"Informe 3","index":0,"n_rows":59,"n_cols":8,"rows_kept":59,"cut":false,"hidden":false,"merged":[]}
[null,"TVS WIRELESS S.A.C"]
[]
[null,"Informe Regulatorio N\" 3: REPORTE DE ADICIONES, BAJAS Y TRASPASOS POR CLASE DE ACTIVO"]
[]
[null,"Periodo de reporte: Enero a Diciembre 2019"]
[null,null,"AC","AG","AH","AJ","AL"]
[null,"Clase de activo ","Valor Bruto contable del periodo anterior (1)","Adiciones","Baja","Traspaso","Valor Bruto Contable del periodo (2)","Nota (3)"]
[null," Planta y Equipo de Comunicaciones  (a)",{"$f":"+C9+C15+C25+C32","v":781.25},{"$f":"+D15+D16+D25+D32","v":0},{"$f":"+E15+E16+E25+E32","v":0},{"$f":"+F15+F16+F25+F32","v":0},{"$f":"+C8+D8+E8+F8","v":781.25}]
[null,"Equipos y dispositivos",{"$f":"SUM(C10:C14)","v":0},{"$f":"SUM(D10:D14)","v":0},{"$f":"SUM(E10:E14)","v":0},{"$f":"SUM(F10:F14)","v":0},{"$f":"SUM(G10:G14)","v":0}]
[null,"Teléfonos de Abonados",{"$nulls":4},0]
[null,"Teléfonos Públicos",{"$nulls":4},0]
[null,"Dispositivos -Telefonía Móvil",{"$nulls":4},0]
[null,"Dispositivos - Internet Móvil",{"$nulls":4},0]
[null,"Otros Equipos",{"$nulls":4},0]
[null," Planta y Equipo de Acceso Local  ",0,0,0,0,0]
[null," Equipos Centrales y de agregación  ",0,0,0,0,0]
[null," Centrales Locales  ",{"$nulls":4},0]
[null," Centrales de Larga Distancia Nacional  ",{"$nulls":4},0]
[null," Centrales de Larga Distancia Internacional  ",{"$nulls":4},0]
[null,"Controladores ",0,0,0,0,0]
[null,"Gateways ",0,0,0,0,0]
[null," Cabeceras  ",0,0,0,0,0]
[null,"Transmisión de Datos (Servicio Final) ",0,0,0,0,0]
[null," Otros equipos centrales  ",0,0,0,0,0]
[null," Transmisión (Gran capacidad)  ",0,0,0,0,0]
[null," Cables de Transmisión (excluidos internacional)  ",0,0,0,0,0]
[null,"Equipos de Transmisión (excluidos internacional) ",0,0,0,0,0]
[null,"Equipos de Transmisión Radio ",0,0,0,0,0]
[null,"Equipos de Transmisión por Satélite",0,0,0,0,0]
[null," Cables y Equipos internacionales (excluyendo satélite)  ",0,0,0,0,0]
[null," Otros equipos de transmisión  ",0,0,0,0,0]
[null," Otros Activos Fijos Brutos de Comunicaciones  ",781.25,0,0,0,781.25]
[null,"Equipos de Fuerza (Planta Energía Eléctrica) ",0,0,0,0,0]
[null,"Sistemas de Gestión de Red",781.25,0,0,0,781.25]
[null," Equipos para Interconexión  ",0,0,0,0,0]
[null," Equipos para Circuitos Alquilados  ",0,0,0,0,0]
[null,"Otros",0,0,0,0,0]
[null," Terreno, Edificios, Planta y Equipos no de Telecomunicaciones  (b)",{"$f":"SUM(C39:C45)","v":0},{"$f":"SUM(D39:D45)","v":0},{"$f":"SUM(E39:E45)","v":0},{"$f":"SUM(F39:F45)","v":0},{"$f":"+C38+D38+E38+F38","v":0}]
[null," Terrenos  ",0,0,0,0,0]
[null,"Edificios ",0,0,0,0,0]
[null,"Vehículos y Ayudas Mecánicas",0,0,0,0,0]
[null,"Equipos Sistemas informáticos ",0,0,0,0,0]
[null," Edificios en arrendamiento financiero  ",0,0,0,0,0]
[null," Otros activos bajo la forma de arrendamiento o leasing  ",0,0,0,0,0]
[null,"Otros Activos no de comunicaciones ",0,0,0,0,0]
[null," Activos Intangibles  ",{"$f":"SUM(C47:C52)","v":25582.33},{"$f":"SUM(D47:D52)","v":0},{"$f":"SUM(E47:E52)","v":0},{"$f":"SUM(F47:F52)","v":0},25582.33]
[null,"Concesiones ",25582.33,0,0,0,25582.33]
[null,"Licencias",0,0,0,0,0]
[null," Patentes y propiedad intelectual  ",0,0,0,0,0]
[null,"Software",0,0,0,0,0]
[null," Investigación y Desarrollo  ",0,0,0,0,0]
[null," Otros Activos Intangibles  ",0,0,0,0,0]
[null,"Activos fijos en curso de construcción (d)"]
[null," Otros Activos No Corrientes  ( c)",159.34700000000001,null,null,null,159.34700000000001]
[null,"Total de activos No corrientes (a+b+c+d)",{"$f":"+C8+C38+C53+C54+C46","v":26522.927000000003},{"$f":"+D8+D38+D53+D54+D46","v":0},{"$f":"+E8+E38+E53+E54+E46","v":0},{"$f":"+F8+F38+F53+F54+F46","v":0},{"$f":"+G8+G38+G53+G54+G46","v":26522.927000000003}]
[]
[null,"(1). Corresponde al valor bruto contable del activo al cierre del periodo contable anterior en miles de soles. "]
[null,"(2). Corresponde al valor bruto contable del activo al cierre del periodo contab!e en miles de soles. "]
[null,"(3). Colocar el número de nota y explicar en las NIR. "]